Workbook

Sheet Sample Size
B1: Sample Size for Linear Models with Fixed Predictors and Uncorrelated, Balanced Data a
B3: Step 1: Enter Alpha Error Rate | I3: Step 2: Enter Power Level | Q3: Step 3: Enter Model Degrees of Freedom
B4: alpha (a) = | E4: 0.05 | I4: power (1-b) = | M4: 0.8 | Q4: df 1 = | S4: 3 | V4: (Must be integer)
B7: Step 4: Enter One Effect Size Value and Click the Corresponding "Find n" Button
B8: d = | C8: 0.75 | F8: r = | G8: -0.47 | J8: r2 = | K8: 0.0935 | N8: f = | O8: 0.425 | R8: f2 = | S8: 0.0624
C12: In the absence of prior research to estimate effect sizes, Cohen b offers
C13: the following guidelines for effect sizes:
H14: d | K14: r | N14: f | Q14: f2
E15: Small | G15: = | H15: 0.2 | K15: 0.1 | N15: 0.1 | Q15: 0.02
E16: Medium | G16: = | H16: 0.5 | K16: 0.3 | N16: 0.25 | Q16: 0.15
E17: Large | G17: = | H17: 0.8 | K17: 0.5 | N17: 0.4 | Q17: 0.35
B21: Results | G21: Non-central | K21: Laubscher's | O21: Laubscher's | S21: Tiku's | W21: Patnaik's
G22: F | K22: Cube Root c | O22: Square Root c | S22: 3-Moment c | W22: 2-Moment c,d
B23: Total Sample n = | G23: 110 | K23: 109 | O23: 109 | S23: 111 | W23: 109
B24: power (1-b) = | G24: 0.801282209 | K24: 0.8032529492 | O24: 0.8017054034 | S24: 0.8006491603 | W24: 0.8020893055
B25: noncen. para. (λ) = | G25: 11.34583563 | K25: 11.24269167 | O25: 11.24269167 | S25: 11.44897959 | W25: 11.24269167
B26: df 2 = | G26: 106 | K26: 105 | O26: 105 | S26: 107 | W26: 105
B27: beta (b) = | G27: 0.198717791 | K27: 0.1967470508 | O27: 0.1982945966 | S27: 0.1993508397 | W27: 0.1979106945
B28: F critical = | G28: 2.690303434 | K28: 2.691132901 | O28: 2.691132901 | S28: 2.689489772 | W28: 2.691132901
B29: effect size f2 = | G29: 0.1031439603 | K29: 0.1031439603 | O29: 0.1031439603 | S29: 0.1031439603 | W29: 0.1031439603

Sheet Power
B1: Calculate Power for Linear Models with Fixed Predictors and Balanced Designs
B3: Step 1: Enter Alpha Error Rate | I3: Step 2: Enter Sample Size | P3: Step 3: Enter Model Degrees of Freedom
B4: alpha (a) = | E4: 0.05 | I4: n = | J4: 135 | P4: df 1 = | R4: 2 | U4: (Must be integer)
B7: Step 4: Enter One Effect Size Value and Click the Corresponding "Find Power" Button
B8: d = | C8: 0.32 | F8: r = | G8: 0.1999 | J8: r2 = | K8: 0.1173 | N8: f = | O8: 0.16 | R8: f2 = | S8: 0.392857
B14: Results | G14: Non-central | K14: Laubscher's | O14: Laubscher's | S14: Tiku's | W14: Patnaik's
G15: F | K15: Cube Root b | O15: Square Root b | S15: 3-Moment b | W15: 2-Moment b,c
B16: Power (1-b) = | G16: 0.3575320159 | K16: 0.344905484 | O16: 0.3646336042 | S16: 0.35576555 | W16: 0.3446974707
B17: alpha = | G17: 0.05 | K17: 0.05 | O17: 0.05 | S17: 0.05 | W17: 0.05
B18: sample size n = | G18: 135 | K18: 135 | O18: 135 | S18: 135 | W18: 135
B19: df 1 = | G19: 2 | K19: 2 | O19: 2 | S19: 2 | W19: 2
B20: noncen. para. (λ) = | G20: 3.456 | K20: 3.456 | O20: 3.456 | S20: 3.456 | W20: 3.456
B21: df 2 = | G21: 132 | K21: 132 | O21: 132 | S21: 132 | W21: 132
B22: beta (b) = | G22: 0.6424679841 | K22: 0.655094516 | O22: 0.6353663958 | S22: 0.64423445 | W22: 0.6553025293
B23: F critical = | G23: 3.064760677 | K23: 3.064760677 | O23: 3.064760677 | S23: 3.064760677 | W23: 3.064760677
B24: effect size f2 = | G24: 0.0256 | K24: 0.0256 | O24: 0.0256 | S24: 0.0256 | W24: 0.0256

Sheet ES Conversion
B1: Convert Among Effect Size Measures
B5: Effect Size Type | D5: Enter Effect Size Below | F5: d | H5: r | J5: r2 | L5: f | N5: f2 | P5: h2= r2
B7: d | D7: 0.47 | E7: = | F7: --- | H7: =IF(SIGN(D7)-1,-1*SQRT(D7^2/(D7^2+4)),SQRT(D7^2/(D7^2+4))) -> 0.2287680269 | J7: =H7^2 -> 0.05233481011 | L7: =SQRT(N7) -> 0.235 | N7: =J7/(1-J7) -> 0.055225 | P7: =($L$7^2)/(1+$L$7^2) -> 0.05233481011
B9: r | D9: 0.23 | E9: = | F9: =D9*2 / SQRT(1-D9^2) -> 0.4726720402 | H9: --- | J9: =IF(D9>1, "error", IF(D9<-1, "error",D9^2)) -> 0.0529 | L9: =SQRT(N9) -> 0.2363360201 | N9: =J9/(1-J9) -> 0.05585471439 | P9: =$J$9 -> 0.0529
B11: r2 | D11: 0.09 | E11: = | F11: =H11*2 / SQRT(1-H11^2) -> 0.628970902 | H11: =SQRT(P11) -> 0.3 | J11: --- | L11: =SQRT(N11) -> 0.314485451 | N11: =P11/(1-P11) -> 0.0989010989 | P11: =IF(SIGN($D$11)=-1, "error",IF($D$11>1,"error",$D$11)) -> 0.09
B13: f | D13: 0.25 | E13: = | F13: =IF(SIGN(D13)=-1, "error", D13*2) -> 0.5 | H13: =SQRT(F13^2/(F13^2+4)) -> 0.242535625 | J13: =H13^2 -> 0.05882352941 | L13: --- | N13: =J13/(1-J13) -> 0.0625 | P13: =$J$13 -> 0.05882352941
B15: f2 | D15: 0.05357 | E15: = | F15: =L15*2 -> 0.4629038777 | H15: =SQRT(F15^2/(F15^2+4)) -> 0.2254909547 | J15: =H15^2 -> 0.05084617064 | L15: =SQRT(D15) -> 0.2314519389 | N15: --- | P15: =$J$15 -> 0.05084617064
B17: h2= r2 | D17: 0.04 | E17: = | F17: =H17*2 / SQRT(1-H17^2) -> 0.4082482905 | H17: =IF(D17>1, "error", IF(D17<0, "error",SQRT(D17))) -> 0.2 | J17: =H17^2 -> 0.04 | L17: =SQRT(N17) -> 0.2041241452 | N17: =J17/(1-J17) -> 0.04166666667 | P17: ---

Sheet ES Calculations
A1: Rule of thumb I have discovered - for random IV models (non-fixed predictors), sample size can be determined
A2: by find n for fixed model, then adding number of predictors to that n for the adjusted n.
A3: Gatsonis and Sampson (1989) seem to say same thing, n + p + 1. See commend in NCSS manual about formula, they note N+ (or -) predictors.
A4: Liu 2013 book discusses formula (pages not identified in Google view) - looks like n + predictors tested + 1, this differs a bit
A6: Example: adjusted r for one predictor based on t-ratio is .33426, calls for n of 65; total of 9 predictors.
A7: Empirical power from three tests (all predictors have same correlation with Y) is .728, .732, .774 with 500 replications.
A8: Empircal power from three tests with n = 65 + 9 = 74 (with 1500 replications) were .797, .804, .791
A9: Gatsonis and Sampson would be n = 65 + 9 + 1 = 75 (tested with 1500 rep) power were .792 .806 .808
A11: Redoing this with 50,000 reps: Looks like correct n is fixed n + all predictors + 1
A12: n = 74 | E12: n = 75
A13: empircal power = .7899, .7971, .7933 | E13: .8036, .8001, .8003
F15: =(1427.57*2)/9993 -> 0.2857139998
J16: r2 | K16: r | M16: Cohen p. 411
B17: f2 = (df variable *F) / df error | G17: delta R2 | I17: 1 | J17: 0.03 | K17: =J17^0.5 -> 0.1732050808 | M17: R2 = f2 / (1+f2)
B18: F | C18: df | D18: error df | E18: f2 | F18: r_sp | G18: r_sp2 | I18: 2 | J18: 0.03 | K18: =J18^0.5 -> 0.1732050808
A19: x | B19: 20.963 | C19: 12 | D19: 307 | E19: =(B19*C19)/D19 -> 0.8194006515 | G19: =E19/(12+E19) -> 0.06391879572 | H19: <correct? | I19: 3 | J19: 0.08 | K19: 0.2828427125
A20: horse | B20: 10.212 | C20: 1 | D20: 387 | E20: =(B20*C20)/D20 -> 0.0263875969 | H20: not for | I20: 4 | J20: 0.08 | K20: 0.2828427125
A21: weight | B21: 55.005 | C21: 1 | D21: 387 | E21: =(B21*C21)/D21 -> 0.1421317829 | H21: df > 1 | I21: 5 | J21: 0.11 | K21: 0.331662479
A22: origin | B22: 16.31 | C22: 2 | D22: 379 | E22: 0.08606860158 | H22: works only with df1 | I22: 6 | J22: 0.11 | K22: 0.331662479
B23: f2 = (t^2 * df) / df error | H23: tests? | I23: 7 | K23: 0
B24: t | C24: df | D24: error df | E24: f2 | I24: 8 | K24: 0
A25: displace | B25: -12.664 | C25: 1 | D25: 325 | E25: =(B25^2*C25)/D25 -> 0.4934673723 | I25: 9 | K25: 0
A26: horse | B26: -3.196 | C26: 1 | D26: 387 | E26: =(B26^2*C26)/D26 -> 0.02639383979 | I26: Sum 1-9 | J26: =SUM(J17:J25) -> 0.44 | K26: divided by 8
A27: weight | B27: -7.417 | C27: 1 | D27: 387 | E27: 0.142149584 | I27: Left | J27: =J26-J20 -> 0.36 | K27: =J27/8 -> 0.045
A29: corr_data_50k_4predictors.dta | D29: R2 = | E29: 0.3286 | G29: f2 | I29: delta R2 | J29: f2 | L29: =0.6025-0.05 -> 0.5525
B30: b | C30: se | D30: t | E30: df | F30: error df | G30: from t | H30: r_sp | I30: r_sp2 | J30: from r_sp2
A31: z1 | B31: 0.1732051 | C31: 0.0074859 | D31: =B31/C31 -> 23.13751186 | E31: 1 | F31: 9993 | G31: =(D31^2*E31)/F31 -> 0.05357194585 | H31: =(D31*(1-$E$29)^0.5) / (F31^0.5) -> 0.1896528525 | I31: =H31^2 -> 0.03596820444 | J31: =I31/(1-$E$29) -> 0.05357194585
A32: z2 | B32: 0.0747731 | C32: 0.0038079 | D32: =B32/C32 -> 19.63630873 | E32: 1 | F32: 49995 | G32: =(D32^2*E32)/F32 -> 0.007712463654 | H32: =(D32*(1-$E$29)^0.5) / (F32^0.5) -> 0.07195935031 | I32: =H32^2 -> 0.005178148098 | J32: =I32/(1-$E$29) -> 0.007712463654
A33: z3 | B33: 0.1542677 | C33: 0.003775 | D33: 40.86561589 | E33: 1 | F33: 49995 | G33: 0.03340331158 | H33: 0.1497564135 | I33: 0.02242698339 | J33: 0.03340331158
A34: z4 | B34: 0.2719148 | C34: 0.003775 | D34: 72.0304106 | E34: 1 | F34: 49995 | G34: 0.1037779788 | H34: 0.2639631318 | I34: 0.06967653497 | J34: 0.1037779788
A35: z5 z6 | H35: delta R2 of Iv drop from above equation = | L35: 0.069677
H36: Model R2 from dropping IV = | L36: =E26-L35 -> -0.04328316021
G37: backwards
A38: Total Model R2 = | F38: 0.0588 | G38: r | J38: Partial r is the adjusted ES after controlling for
A39: Model R2 without predictors = | F39: 0 | G39: =F39^0.5 -> 0 | J39: predicted variance in model. E.g. f -> r is original r
A40: Change in R2 adding predictor = | F40: =F38-F39 -> 0.0588 | G40: d | H40: r (partial r) | I40: r2 | J40: and adjusted f to r is partial r.
A41: f2 from change in R2 and total R2 = | F41: =F40/(1-F38) -> 0.06247343816 | G41: =((F41)^0.5)*2 -> 0.4998937414 | H41: =G41/((G41^2+4)^0.5) -> 0.2424871131 | I41: =H41^2 -> 0.0588
A42: Adjusted f2 due to model R2 without predictors = | F42: =F41 / (1-F38)^0.5 -> 0.06439534115 | H42: Use d or f for adjustments, not f2 since it is non-linear.
A43: Original f | F43: =F41^0.5 -> 0.2499468707
A44: adjusted f | F44: =F43 / (1-F38)^0.5 -> 0.2576361167 | G44: Related among r, partial r, semipartial r, etc.
G45: r = semipartial r if all IV are uncorrelated
A46: adjusted f2 to enter in power calculations as added IV = | F46: =F42 -> 0.06439534115 | G46: partial r = adjusted r taking into account other predictors
G47: E.g., original r y.z4 = .4330, z4 uncorrleated with other Z, model R2 = .4375,
G48: then partial r is .50
A49: Thoughts about adjusted ES - examples Cohen provides (I think, need to study all examples), has the
A50: covariates as unrelated to the variable added. In that case, we can adjust (inflate) the expected ES. However,
A51: if the covariates are correlated with added IV, then adjusting the ES may lead to an underpowered study since colinearity might not result in enlarged ES.
A52: Check math here. If correct, better to calculate ES from t or F ratio, and then do not adjust since this represents
A53: the ES that is likely to be realisitically observed.
A54: Example - use corr2data to calculate two files, one with correlated Ivs and one without, maintain same r between IV and DV in both -
A55: do the actual effect sizes increase or decrease? What happens when IV correlations are negative or positive?
A62: Example 1: data files with correlations | H62: Example 2: data files with correlations
B63: Y | C63: Z1 | D63: Z2 | E63: Z3 | F63: Z4 | I63: Y | J63: Z1 | K63: Z2 | L63: Z3 | M63: Z4
A64: Y | B64: 1 | C64: 0.1 | D64: 0.3 | E64: 0.1 | F64: 0.3 | H64: Y | I64: 1 | J64: 0.1 | K64: 0.3 | L64: 0.1 | M64: 0.3
A65: Z1 | B65: 0.1 | C65: 1 | D65: 0 | E65: 0 | F65: 0 | H65: Z1 | I65: 0.1 | J65: 1 | K65: 0.2 | L65: 0.2 | M65: 0.2
A66: Z2 | B66: 0.3 | C66: 0 | D66: 1 | E66: 0 | F66: 0 | H66: Z2 | I66: 0.3 | J66: 0.2 | K66: 1 | L66: 0.2 | M66: 0.2
A67: Z3 | B67: 0.1 | C67: 0 | D67: 0 | E67: 1 | F67: 0 | H67: Z3 | I67: 0.1 | J67: 0.2 | K67: 0.2 | L67: 1 | M67: 0.2
A68: Z4 | B68: 0.3 | C68: 0 | D68: 0 | E68: 0 | F68: 1 | H68: Z4 | I68: 0.3 | J68: 0.2 | K68: 0.2 | L68: 0.2 | M68: 1
A70: Partial and semipartial correlations of y with | H70: Partial and semipartial correlations of y with
A72: Partial Semipartial Partial Semipartial Significance | H72: Partial Semipartial Partial Semipartial Significance
A73: Variable | Corr. Corr. Corr.^2 Corr.^2 Value | H73: Variable | Corr. Corr. Corr.^2 Corr.^2 Value
A74: ------------+----------------------------------------------------------------- | H74: ------------+-----------------------------------------------------------------
A75: z1 | 0.1111 0.1000 0.0123 0.0100 0.0000 | H75: z1 | 0.0000 0.0000 0.0000 0.0000 1.0000
A76: z2 | 0.3180 0.3000 0.1011 0.0900 0.0000 | H76: z2 | 0.2510 0.2390 0.0630 0.0571 0.0000
A77: z3 | 0.1111 0.1000 0.0123 0.0100 0.0000 | H77: z3 | 0.0000 0.0000 0.0000 0.0000 1.0000
A78: z4 | 0.3180 0.3000 0.1011 0.0900 0.0000 | H78: z4 | 0.2510 0.2390 0.0630 0.0571 0.0000
H80: Note the delta-R2 is now 0.00 for Z1 and Z2; effect size is 0.00.
H81: For Z2 and Z4, the ES has decreased from .09 to .057
A83: Example 3: data files with correlations | H83: Example 4: data files with correlations
B84: Y | C84: Z1 | D84: Z2 | E84: Z3 | F84: Z4 | I84: Y | J84: Z1 | K84: Z2 | L84: Z3 | M84: Z4
A85: Y | B85: 1 | C85: 0.4 | D85: 0.3 | E85: 0.4 | F85: 0.3 | H85: Y | I85: 1 | J85: 0.1 | K85: 0.3 | L85: 0.1 | M85: 0.3
A86: Z1 | B86: 0.4 | C86: 1 | D86: 0.2 | E86: 0.2 | F86: 0.2 | H86: Z1 | I86: 0.1 | J86: 1 | K86: -0.2 | L86: 0.2 | M86: 0.2
A87: Z2 | B87: 0.3 | C87: 0.2 | D87: 1 | E87: 0.2 | F87: 0.2 | H87: Z2 | I87: 0.3 | J87: -0.2 | K87: 1 | L87: -0.2 | M87: -0.2
A88: Z3 | B88: 0.4 | C88: 0.2 | D88: 0.2 | E88: 1 | F88: 0.2 | H88: Z3 | I88: 0.1 | J88: 0.2 | K88: -0.2 | L88: 1 | M88: 0.2
A89: Z4 | B89: 0.3 | C89: 0.2 | D89: 0.2 | E89: 0.2 | F89: 1 | H89: Z4 | I89: 0.3 | J89: 0.2 | K89: -0.2 | L89: 0.2 | M89: 1
A91: Partial and semipartial correlations of y with | H91: Partial and semipartial correlations of y with
A93: Partial Semipartial Partial Semipartial Significance | H93: Partial Semipartial Partial Semipartial Significance
A94: Variable | Corr. Corr. Corr.^2 Corr.^2 Value | H94: Variable | Corr. Corr. Corr.^2 Corr.^2 Value
A95: ------------+----------------------------------------------------------------- | H95: ------------+-----------------------------------------------------------------
A96: z1 | 0.3098 0.2689 0.0960 0.0723 0.0000 | H96: z1 | 0.1025 0.0896 0.0105 0.0080 0.0000
A97: z2 | 0.1781 0.1494 0.0317 0.0223 0.0000 | H97: z2 | 0.4078 0.3884 0.1663 0.1509 0.0000
A98: z3 | 0.3098 0.2689 0.0960 0.0723 0.0000 | H98: z3 | 0.1025 0.0896 0.0105 0.0080 0.0000
A99: z4 | 0.1781 0.1494 0.0317 0.0223 0.0000 | H99: z4 | 0.3536 0.3287 0.1250 0.1080 0.0000
H101: Note negative correlation increaes some ES and weakens others.
A103: Example 5: data files with correlations
B104: Y | C104: Z1 | D104: Z2 | E104: Z3 | F104: Z4
A105: Y | B105: 1 | C105: 0.1 | D105: -0.3 | E105: 0.1 | F105: 0.3
A106: Z1 | B106: 0.1 | C106: 1 | D106: -0.2 | E106: 0.2 | F106: 0.2
A107: Z2 | B107: -0.3 | C107: -0.2 | D107: 1 | E107: -0.2 | F107: -0.2
A108: Z3 | B108: 0.1 | C108: 0.2 | D108: -0.2 | E108: 1 | F108: 0.2
A109: Z4 | B109: 0.3 | C109: 0.2 | D109: -0.2 | E109: 0.2 | F109: 1
A111: Partial and semipartial correlations of y with
A113: Partial Semipartial Partial Semipartial Significance
A114: Variable | Corr. Corr. Corr.^2 Corr.^2 Value
A115: ------------+-----------------------------------------------------------------
A116: z1 | 0.0000 0.0000 0.0000 0.0000 1.0000
A117: z2 | -0.2510 -0.2390 0.0630 0.0571 0.0000
A118: z3 | 0.0000 0.0000 0.0000 0.0000 1.0000
A119: z4 | 0.2510 0.2390 0.0630 0.0571 0.0000
A121: Making Z2 negatively correlated with all removes some ES like Example 2.

Sheet Working Formulas
B2: es r = | C2: -0.431004 | G2: num = | H2: =0.461-0.618*0.683 -> 0.038906
B3: d = | C3: =C2*2 / SQRT(1-C2^2) -> -0.9552922751 | G3: dnom= | H3: =(1-0.683^2)^0.5 -> 0.7304183733
B5: covar r = | C5: 0.342527 | G5: sr2 = | H5: =H2/H3 -> 0.05326536328
B6: adj d = | C6: =C3 /( (1-C5^2)^0.5) -> -1.016800591
B7: adj r = | C7: =IF(SIGN(C6)-1,-1*SQRT(C6^2/(C6^2+4)),SQRT(C6^2/(C6^2+4))) -> -0.4531940637
B10: r2 = | C10: 0.1742
B11: r = | C11: =C10^0.5 -> 0.4173727351
A14: My two-way ANCOVA
C15: R2 | D15: R | E15: Model
C16: 0.4773 | D16: =C16^0.5 -> 0.690869018 | E16: factor1 factor2 b1 b2
C17: 0.2916 | D17: =C17^0.5 -> 0.54 | E17: factor1 b1 b2
C18: 0.36 | D18: =C18^0.5 -> 0.6 | E18: factor2 b1 b2
C19: 0.1742 | D19: =C19^0.5 -> 0.4173727351 | E19: b1 b2
C21: Delta R2 | D21: delta R
C22: =C16-C18 -> 0.1173 | D22: =C22^0.5 -> 0.3424908758 | E22: factor1
C23: =C16-C17 -> 0.1857 | D23: =C23^0.5 -> 0.4309292285 | E23: factor2
F25: Covariate+factor adjusted ES (covariate+factor r=.54 or .60)
C26: Zero order R2 | D26: Zero order R | G26: adj ES | H26: Pre Power | I26: empirical power
C27: 0.1173 | D27: =C27^0.5 -> 0.3424908758 | E27: factor1 | G27: 0.41465 | H27: 0.628 | I27: 0.6394 | J27: NA - no covariates in factorialsim
C28: 0.1858 | D28: =C28^0.5 -> 0.4310452412 | E28: factor2 | G28: 0.49355 | H28: 0.863 | I28: 0.8833
I29: ^ | J29: ^
D30: Sample size per cell = | F30: 6 | I30: 15000 reps | J30: factorial sim
E32: total n = | F32: =9*F30 -> 54
A34: * | B34: The estimates of pre-power were estimated using the same procedure as used in ancova -- leave n as total n and just
B35: adjust the effect size to account for the other model predictors.
A36: * | B36: These estimates likely disagree with Cohen's 1988 since he adjusts sample size based on denominator df
B37: and number of groups.
A38: * | B38: factorialsim (to use, must locate simdat.dta file in ado directory) reports values noted above.
B39: Factorial sim does not estimate effects of covariates
A42: My two-way ANOVA (NO COVARIATES!)
C44: R2 | D44: R
C45: 0.1173 | D45: =C45^0.5 -> 0.3424908758 | E45: factor1
C46: 0.1857 | D46: =C46^0.5 -> 0.4309292285 | E46: factor2
F48: Covariate+factor adjusted ES (covariate+factor r=.54 or .60)
C49: Zero order R2 | D49: Zero order R | G49: adj ES | H49: Pre Power | I49: empirical power
C50: 0.117325 | D50: =C50^0.5 -> 0.3425273712 | E50: factor1 | G50: 0.37461 | H50: 0.4904 | I50: 0.4831 | J50: 0.4915 | K50: 0.492
C51: 0.1857645 | D51: =C51^0.5 -> 0.4310040603 | E51: factor2 | G51: 0.453194 | H51: 0.7543 | I51: 0.764 | J51: 0.7691 | K51: 0.7541
K52: ^
D53: Sample size per cell = | F53: 6 | I53: ^ | J53: ^ | K53: factorial sim
I54: 1500 reps | J54: 15000 reps
E55: total n = | F55: =9*F53 -> 54 | I55: with | J55: no | K55: with
I56: interactions | J56: interactions | K56: interactions
I58: Note interactions F ratio is 0.00, no
I59: effect at all, no correlation at all.

Sheet Cohen d
A1: Comparison of d values for unequal sample sizes
A3: ANOVA of Cars data, MPG for US and Japanese cars
D4: M | E4: sd | F4: VAR | G4: n
C5: American | D5: 20.13 | E5: 6.377 | F5: =E5^2 -> 40.666129 | G5: 248
C6: Japanese | D6: 30.45 | E6: 6.09 | F6: =E6^2 -> 37.0881 | G6: 79
B9: t test results
C10: t | D10: df | F10: f2 from t | G10: d from f2
C11: -12.664 | D11: 325 | F11: =(C11^2)/D11 -> 0.4934673723 | G11: =(F11^0.5)*2 -> 1.404944657
B13: ANOVA
C14: F | D14: dfb | E14: df e | F14: f2 from F | G14: d from f2 | H14: d from F
C15: 160.379 | D15: 1 | E15: 325 | F15: =(C15*D15)/E15 -> 0.4934738462 | G15: =(F15^0.5)*2 -> 1.404953873 | H15: =(E15*D15/C15)^0.5 -> 1.42353428
B17: d = (M1 - M2) / pooled SD | F17: Pooled SD =
E19: Num | F19: =(G5-1)*F5+(G6-1)*F6 -> 12937.40566
E20: Denom | F20: =G5+G6-2 -> 325
E21: Ratio | F21: =F19/F20 -> 39.80740204
E22: SQRT | F22: =F21^0.5 -> 6.309310742 | G22: = Pooled SD
E24: Mean Diff | F24: =D6-D5 -> 10.32
E25: d | F25: =F24/F22 -> 1.635677877
B28: d unequal n
C29: n_h | E29: =(2*G5*G6)/(G5+G6) -> 119.8287462
C30: Mean n | E30: =(G5+G6)/2 -> 163.5
C31: 2t/SQRT(df) | E31: =C11*2/(D11^0.5) -> -1.404944657 | H31: So d from t underestimates ES in absolute value.
C32: SQRT(n_h/Mean n) | E32: =(E30/E29)^0.5 -> 1.168095554
C33: t = | E33: =E31*E32 -> -1.641109608
